lending/lending_fUSD_20251016
["ID","MTS","AMOUNT","RATE_DAILY","PERIOD"]
[391428814,1760600781224,2033.067319,0.0002739,120]
[391428819,1760600841637,188.27990908,0.00030861,30]
[391428829,1760601031687,-382.35999,0.00013548,2]
[391428830,1760601031773,-1980.63001,0.00013548,2]
[391428831,1760601031783,-1583.25,0.0001357,2]
[391428832,1760601031793,-1199.62,0.00013579,2]
[391428833,1760601031803,-166.66,0.00013699,2]
[391428834,1760601031814,-200.0,0.00013699,2]
[391428835,1760601031824,-1024.0,0.00013798,2]
[391428836,1760601031834,-166.66,0.00013902,2]
[391428837,1760601031848,-250.0,0.0001393,2]
[391428838,1760601031857,-1000.0,0.00013947,2]
[391428839,1760601031867,-430.0,0.00014039,2]
[391428840,1760601031876,-300.0,0.0001405,2]
[391428841,1760601031886,-1200.0,0.0001405,2]
[391428842,1760601031895,-322.6107,0.00014052,2]
[391428843,1760601031905,-250.0,0.00014052,2]
[391428844,1760601031914,-250.0,0.00014052,2]
[391428845,1760601031924,-250.0,0.00014052,2]
[391428846,1760601031933,-250.0,0.00014052,2]
[391428847,1760601031943,-250.0,0.00014052,2]
[391428848,1760601031952,-250.0,0.00014052,2]
[391428849,1760601031962,-250.0,0.00014052,2]
[391428850,1760601031972,-250.0,0.00014052,2]
[391428851,1760601031981,-250.0,0.00014052,2]
[391428852,1760601031990,-200.0,0.00014052,2]
[391428853,1760601032000,-277.35679052,0.00014052,2]
[391428854,1760601032010,-448.82967415,0.00014052,2]
[391428855,1760601032019,-150.0,0.00014059,2]
[391428857,1760601032029,-262.77365313,0.00014059,2]
[391428859,1760601032038,-3818.53287805,0.0001406,2]
[391428860,1760601032049,-16971.69712195,0.0001406,2]
[391428861,1760601032060,-805.0,0.00014091,2]
[391428862,1760601032069,-166.66,0.00014105,2]
[391428863,1760601032079,-168.22,0.000142,2]
[391428864,1760601032089,-955.18,0.000142,2]
[391428865,1760601032099,-1207.48,0.000142,2]
[391428866,1760601032108,-430.0,0.00014279,2]
[391428867,1760601032117,-166.66,0.00014308,2]
[391428868,1760601032128,-168.0,0.00014421,2]
[391428869,1760601032137,-430.0,0.00014435,2]
[391428871,1760601032147,-1679.0,0.00014503,2]
[391428872,1760601032156,-1488.84133987,0.00014504,2]
[391428874,1760601032467,-1684.50551895,0.00014504,2]
[391428875,1760601032560,-1670.94410896,0.00014504,2]
[391428983,1760601039316,-15155.69903222,0.00014504,2]
[391428985,1760601039325,-166.66,0.00014511,2]
[391428987,1760601039335,-203.05725991,0.000146,2]
[391428989,1760601039346,-166.66,0.00014714,2]
[391428991,1760601039357,-168.0,0.00014728,2]
[391428993,1760601039367,-1187.0,0.00014784,2]
[391428994,1760601039377,-150.0,0.0001484,2]
[391428996,1760601039395,-157.16496,0.0001485,2]
[391428999,1760601039406,-200.0,0.0001488,2]
[391429000,1760601039416,-483.84934339,0.00014899,2]
[391429003,1760601039426,-1000.0,0.000149,2]
[391429005,1760601039436,-11667.0788,0.000149,2]
[391429007,1760601039445,-148.79085742,0.000149,2]
[391429009,1760601039457,-331.241408,0.000149,2]
[391429013,1760601039487,-7427.00645547,0.000149,2]
[391429015,1760601039496,-2500.0,0.000149,2]
[391429017,1760601039506,-6458.51476207,0.000149,2]
[391429019,1760601039515,-500.0,0.00014973,2]
[391429021,1760601039524,-500.0,0.00014973,2]
[391429023,1760601039533,-500.0,0.00014973,2]
[391429025,1760601039542,-500.0,0.00014973,2]
[391429027,1760601039552,-1187.0,0.00014973,2]
[391429029,1760601039562,-157.16496,0.0001498,2]
[391429031,1760601039571,-500.0,0.00014985,2]
[391429034,1760601039580,-5822.00714872,0.0001499,2]
[391429037,1760601039592,-5552.5,0.0001499,2]
[391429040,1760601039615,-13299.41938992,0.0001499,2]
[391429153,1760601040682,-9687.17703315,0.0001499,2]
[391429163,1760601040771,-292.60319997,0.0001499,2]
[391429177,1760601040893,-2054.86838987,0.0001499,2]
[391429179,1760601040905,-7315.2,0.0001499,2]
[391429181,1760601040916,-11914.712,0.0001499,2]
[391429184,1760601040927,-3770.90089442,0.0001499,2]
[391429369,1760601042787,-3323.05287521,0.0001499,2]
[391429371,1760601042799,-1767.7686502,0.0001499,2]
[391429374,1760601042819,-2348.2,0.0001499,2]
[391429379,1760601042853,-818.35140669,0.0001499,2]
[391429381,1760601042864,-2445.09886678,0.0001499,2]
[391429383,1760601042875,-532.03,0.0001499,2]
[391429387,1760601042898,-2303.34811332,0.0001499,2]
[391429389,1760601042910,-500.46701949,0.0001499,2]
[391429395,1760601042951,-1031.64859331,0.0001499,2]
[391429397,1760601042962,-25507.31148106,0.0001499,2]
[391429399,1760601042975,-1124.72568095,0.0001499,2]
[391429670,1760601045626,-190.47023325,0.000149,2]
[391429672,1760601045636,-1478.61126675,0.0001499,2]
[391429679,1760601045689,-147109.99799019,0.0001499,2]
[391429681,1760601045699,-156.064,0.00014999,2]
[391429683,1760601045708,-666.0,0.00014999,2]
[391429685,1760601045717,-666.0,0.00014999,2]
[391429687,1760601045726,-15295.33571868,0.00015,2]
[391429689,1760601045735,-263.8130716,0.00015,2]
[391429691,1760601045745,-50405.92033297,0.00015,2]
[391429693,1760601045755,-132924.80506983,0.00015,2]
[391429695,1760601045764,-1780.31410166,0.00015,2]
[391429697,1760601045773,-151.675622,0.00015,2]
[391429699,1760601045782,-152.754799,0.00015,2]
[391429701,1760601045791,-151.0,0.00015,2]
[391429703,1760601045800,-151.0,0.00015,2]
[391429705,1760601045810,-151.0,0.00015,2]
[391429707,1760601045819,-151.545373,0.00015,2]
[391429708,1760601045828,-151.0,0.00015,2]
[391429711,1760601045838,-151.0,0.00015,2]
[391429713,1760601045848,-151.0,0.00015,2]
[391429715,1760601045857,-151.0,0.00015,2]
[391429717,1760601045866,-151.0,0.00015,2]
[391429719,1760601045875,-155.091782,0.00015,2]
[391429720,1760601045884,-151.0,0.00015,2]
[391429722,1760601045893,-151.0,0.00015,2]
[391429724,1760601045902,-151.0,0.00015,2]
[391429726,1760601045911,-151.0,0.00015,2]
[391429728,1760601045921,-151.0,0.00015,2]
[391429730,1760601045930,-151.0,0.00015,2]
[391429732,1760601045939,-151.0,0.00015,2]
[391429734,1760601045949,-265.255543,0.00015,2]
[391429736,1760601045959,-151.0,0.00015,2]
[391429738,1760601045968,-151.0,0.00015,2]
[391429740,1760601045977,-151.0,0.00015,2]
[391429742,1760601045988,-151.0,0.00015,2]
[391429744,1760601045997,-151.0,0.00015,2]
[391429746,1760601046006,-151.0,0.00015,2]
[391429748,1760601046016,-151.0,0.00015,2]
[391429750,1760601046025,-152.319344,0.00015,2]
[391429752,1760601046035,-151.0,0.00015,2]
[391429754,1760601046044,-151.873245,0.00015,2]
[391429756,1760601046053,-151.0,0.00015,2]
[391429758,1760601046063,-151.0,0.00015,2]
[391429760,1760601046072,-151.614936,0.00015,2]
[391429762,1760601046081,-151.0,0.00015,2]
[391429764,1760601046091,-151.0,0.00015,2]
[391429766,1760601046101,-151.0,0.00015,2]
[391429768,1760601046110,-151.0,0.00015,2]
[391429771,1760601046119,-151.0,0.00015,2]
[391429773,1760601046128,-151.0,0.00015,2]
[391429775,1760601046138,-151.0,0.00015,2]
[391429777,1760601046148,-155.199653,0.00015,2]
[391429779,1760601046157,-151.0,0.00015,2]
[391429781,1760601046166,-151.0,0.00015,2]
[391429783,1760601046176,-151.0,0.00015,2]
[391429785,1760601046185,-151.0,0.00015,2]
[391429787,1760601046194,-152.255797,0.00015,2]
[391429788,1760601046203,-151.0,0.00015,2]
[391429791,1760601046213,-254.66973139,0.00015,2]
[391429793,1760601046224,-151.0,0.00015,2]
[391429795,1760601046234,-151.0,0.00015,2]
[391429796,1760601046243,-151.0,0.00015,2]
[391429799,1760601046253,-531.722978,0.00015,2]
[391429801,1760601046262,-531.722978,0.00015,2]
[391429803,1760601046271,-531.722978,0.00015,2]
[391429805,1760601046281,-531.722978,0.00015,2]
[391429807,1760601046290,-531.722978,0.00015,2]
[391429809,1760601046299,-531.722978,0.00015,2]
[391429811,1760601046309,-531.722978,0.00015,2]
[391429813,1760601046318,-531.722978,0.00015,2]
[391429815,1760601046327,-211.458318,0.00015,2]
[391429817,1760601046336,-151.0,0.00015,2]
[391429819,1760601046347,-151.0,0.00015,2]
[391429821,1760601046356,-229.713104,0.00015,2]
[391429823,1760601046366,-153.964556,0.00015,2]
[391429825,1760601046375,-37390.1882046,0.00015,2]
[391429827,1760601046384,-151.0,0.00015,2]
[391429829,1760601046394,-152.473314,0.00015,2]
[391429831,1760601046403,-151.0,0.00015,2]
[391429833,1760601046412,-151.0,0.00015,2]
[391429835,1760601046421,-270.457391,0.00015,2]
[391429837,1760601046432,-270.457391,0.00015,2]
[391429839,1760601046442,-270.457391,0.00015,2]
[391429841,1760601046450,-270.457391,0.00015,2]
[391429843,1760601046460,-270.457391,0.00015,2]
[391429845,1760601046469,-270.457391,0.00015,2]
[391429847,1760601046478,-270.457391,0.00015,2]
[391429849,1760601046488,-270.457391,0.00015,2]
[391429851,1760601046497,-153.983194,0.00015,2]
[391429853,1760601046506,-151.0,0.00015,2]
[391429855,1760601046515,-151.0,0.00015,2]
[391429857,1760601046524,-182.053928,0.00015,2]
[391429859,1760601046533,-151.0,0.00015,2]
[391429861,1760601046542,-151.0,0.00015,2]
[391429863,1760601046551,-151.0,0.00015,2]
[391429865,1760601046562,-151.0,0.00015,2]
[391429867,1760601046571,-151.0,0.00015,2]
[391429869,1760601046580,-151.0,0.00015,2]
[391429871,1760601046590,-178.115184,0.00015,2]
[391429873,1760601046599,-151.0,0.00015,2]
[391429875,1760601046608,-151.0,0.00015,2]
[391429877,1760601046617,-151.0,0.00015,2]
[391429879,1760601046626,-151.0,0.00015,2]
[391429881,1760601046635,-151.0,0.00015,2]
[391429883,1760601046644,-151.0,0.00015,2]
[391429885,1760601046653,-151.0,0.00015,2]
[391429887,1760601046662,-160.822445,0.00015,2]
[391429889,1760601046671,-160.822445,0.00015,2]
[391429891,1760601046680,-160.822445,0.00015,2]
[391429893,1760601046689,-160.822445,0.00015,2]
[391429895,1760601046698,-160.822445,0.00015,2]
[391429897,1760601046708,-151.0,0.00015,2]
[391429899,1760601046717,-160.822445,0.00015,2]
[391429901,1760601046727,-160.822445,0.00015,2]
[391429903,1760601046736,-160.822445,0.00015,2]
[391429905,1760601046746,-160.822445,0.00015,2]
[391429907,1760601046755,-160.822445,0.00015,2]
[391429909,1760601046765,-160.822445,0.00015,2]
[391429911,1760601046774,-160.822445,0.00015,2]
[391429913,1760601046783,-151.0,0.00015,2]
[391429915,1760601046793,-151.0,0.00015,2]
[391429917,1760601046802,-151.0,0.00015,2]
[391429920,1760601046814,-151.0,0.00015,2]
[391429922,1760601046823,-216.000007,0.00015,2]
[391429924,1760601046832,-238.486764,0.00015,2]
[391429926,1760601046841,-151.0,0.00015,2]
[391429928,1760601046850,-151.0,0.00015,2]
[391429929,1760601046860,-151.0,0.00015,2]
[391429931,1760601046869,-151.0,0.00015,2]
[391429934,1760601046878,-151.0,0.00015,2]
[391429936,1760601046888,-151.0,0.00015,2]
[391429938,1760601046896,-151.0,0.00015,2]
[391429940,1760601046906,-152.954391,0.00015,2]
[391429941,1760601046915,-151.0,0.00015,2]
[391429944,1760601046924,-151.0,0.00015,2]
[391429946,1760601046933,-151.0,0.00015,2]
[391429947,1760601046947,-151.0,0.00015,2]
[391429950,1760601046959,-151.0,0.00015,2]
[391429952,1760601046969,-151.0,0.00015,2]
[391429954,1760601046979,-151.0,0.00015,2]
[391429956,1760601046989,-151.0,0.00015,2]
[391429958,1760601046998,-151.749669,0.00015,2]
[391429960,1760601047008,-152.449385,0.00015,2]
[391429962,1760601047017,-183.865553,0.00015,2]
[391429964,1760601047026,-1623.416933,0.00015,2]
[391429966,1760601047035,-183.865553,0.00015,2]
[391429968,1760601047044,-183.865553,0.00015,2]
[391429970,1760601047054,-151.0,0.00015,2]
[391429972,1760601047063,-153.626116,0.00015,2]
[391429974,1760601047073,-160.0,0.00015,2]
[391429976,1760601047082,-183.865553,0.00015,2]
[391429978,1760601047091,-183.865553,0.00015,2]
[391429980,1760601047100,-183.865553,0.00015,2]
[391429982,1760601047110,-183.865553,0.00015,2]
[391429984,1760601047119,-183.865553,0.00015,2]
[391429986,1760601047127,-151.0,0.00015,2]
[391429988,1760601047136,-183.865553,0.00015,2]
[391429990,1760601047145,-151.0,0.00015,2]
[391429992,1760601047155,-151.0,0.00015,2]
[391429994,1760601047164,-183.865553,0.00015,2]
[391429996,1760601047174,-183.865553,0.00015,2]
[391429998,1760601047183,-183.865553,0.00015,2]
[391430000,1760601047192,-195.495569,0.00015,2]
[391430002,1760601047201,-151.0,0.00015,2]
[391430004,1760601047211,-151.0,0.00015,2]
[391430006,1760601047220,-151.0,0.00015,2]
[391430008,1760601047230,-151.0,0.00015,2]
[391430010,1760601047239,-151.0,0.00015,2]
[391430012,1760601047248,-151.0,0.00015,2]
[391430014,1760601047257,-151.0,0.00015,2]
[391430016,1760601047267,-151.0,0.00015,2]
[391430018,1760601047276,-151.0,0.00015,2]
[391430020,1760601047286,-151.0,0.00015,2]
[391430022,1760601047294,-151.0,0.00015,2]
[391430024,1760601047303,-151.0,0.00015,2]
[391430026,1760601047313,-151.0,0.00015,2]
[391430028,1760601047322,-151.0,0.00015,2]
[391430030,1760601047331,-151.0,0.00015,2]
[391430033,1760601047340,-151.0,0.00015,2]
[391430035,1760601047350,-151.0,0.00015,2]
[391430036,1760601047362,-151.0,0.00015,2]
[391430039,1760601047371,-152.091544,0.00015,2]
[391430040,1760601047380,-151.0,0.00015,2]
[391430043,1760601047389,-152.707265,0.00015,2]
[391430045,1760601047401,-151.097955,0.00015,2]
[391430047,1760601047410,-1187.0,0.00015004,2]
[391430049,1760601047421,-1187.0,0.00015023,2]
[391430051,1760601047432,-1187.0,0.00015032,2]
[391430053,1760601047441,-1187.0,0.0001505,2]
[391430055,1760601047450,-666.0,0.00015059,2]
[391430057,1760601047460,-7907.03872085,0.0001506,2]
[391430059,1760601047469,-6458.51476202,0.0001506,2]
[391430061,1760601047478,-4204.08519142,0.00015085,2]
[391430063,1760601047487,-168.0,0.00015087,2]
[391430065,1760601047496,-483.84934336,0.00015105,2]
[391430067,1760601047505,-1187.0,0.00015132,2]
[391430069,1760601047514,-1187.0,0.00015164,2]
[391430071,1760601047524,-168.0,0.00015174,2]
[391430073,1760601047533,-188.0,0.00015184,2]
[391430075,1760601047542,-394.16047972,0.00015204,2]
[391430077,1760601047551,-1187.0,0.00015214,2]
[391430098,1760601047831,-529.17204663,0.00015219,2]
[391430100,1760601047842,-151.0,0.00015219,2]
[391430103,1760601047852,-270.457391,0.00015219,2]
[391430105,1760601047862,-270.457391,0.00015219,2]
[391430107,1760601047872,-270.457391,0.00015219,2]
[391430109,1760601047881,-270.457391,0.00015219,2]
[391430111,1760601047890,-151.0,0.00015219,2]
[391430113,1760601047899,-151.0,0.00015219,2]
[391430115,1760601047908,-7907.03872085,0.0001522,2]
[391430117,1760601047918,-6458.51476202,0.0001522,2]
[391430119,1760601047927,-157.16497,0.0001524,2]
[391430121,1760601047936,-5888.0,0.00015253,2]
[391430123,1760601047945,-151.0,0.00015253,2]
[391430125,1760601047955,-151.0,0.00015253,2]
[391430127,1760601047965,-151.0,0.00015253,2]
[391430129,1760601047975,-151.0,0.00015253,2]
[391430131,1760601047984,-196.113967,0.00015253,2]
[391430133,1760601047993,-152.110469,0.00015253,2]
[391430135,1760601048003,-151.0,0.00015253,2]
[391430137,1760601048012,-152.507123,0.00015253,2]
[391430139,1760601048021,-151.0,0.00015253,2]
[391430141,1760601048029,-151.0,0.00015253,2]
[391430143,1760601048039,-151.0,0.00015253,2]
[391430145,1760601048049,-181.52045,0.00015253,2]
[391430147,1760601048058,-151.0,0.00015253,2]
[391430149,1760601048067,-151.0,0.00015279,2]
[391430151,1760601048076,-151.0,0.00015279,2]
[391430153,1760601048085,-531.722978,0.00015279,2]
[391430155,1760601048095,-531.722978,0.00015279,2]
[391430157,1760601048104,-531.722978,0.00015279,2]
[391430159,1760601048113,-531.722978,0.00015279,2]
[391430161,1760601048122,-151.0,0.00015279,2]
[391430163,1760601048132,-151.0,0.00015279,2]
[391430165,1760601048141,-151.0,0.00015279,2]
[391430167,1760601048150,-201.619076,0.00015279,2]
[391430169,1760601048159,-160.822445,0.00015279,2]
[391430171,1760601048169,-160.822445,0.00015279,2]
[391430173,1760601048178,-160.822445,0.00015279,2]
[391430175,1760601048187,-160.822445,0.00015279,2]
[391430177,1760601048196,-151.0,0.00015279,2]
[391430179,1760601048205,-233.99538,0.00015279,2]
[391430181,1760601048215,-300.48504904,0.00015279,2]
[391430183,1760601048224,-183.865553,0.00015279,2]
[391430185,1760601048233,-183.865553,0.00015279,2]
[391430187,1760601048242,-183.865553,0.00015279,2]
[391430189,1760601048251,-151.0,0.00015279,2]
[391430191,1760601048261,-183.865553,0.00015279,2]
[391430194,1760601048271,-151.0,0.00015288,2]
[391430196,1760601048280,-151.0,0.00015288,2]
[391430198,1760601048289,-151.0,0.00015288,2]
[391430200,1760601048298,-152.324867,0.00015288,2]
[391430202,1760601048307,-300.0,0.00015292,2]
[391430204,1760601048317,-200.0,0.000153,5]
[391430206,1760601048326,-1187.0,0.00015303,2]
[391430208,1760601048335,-151.0,0.0001531,2]
[391430210,1760601048345,-151.0,0.0001531,2]
[391430212,1760601048357,-151.0,0.0001531,2]
[391430214,1760601048366,-151.0,0.0001531,2]
[391430216,1760601048375,-151.0,0.0001531,2]
[391430218,1760601048384,-151.0,0.0001531,2]
[391430220,1760601048395,-193.90049,0.0001531,2]
[391430222,1760601048404,-151.0,0.0001531,2]
[391430224,1760601048413,-483.84934336,0.0001531,2]
[391430226,1760601048422,-1187.0,0.00015315,2]
[391430228,1760601048434,-177.967836,0.0001536,2]
[391430230,1760601048444,-270.457391,0.0001536,2]
[391430232,1760601048453,-270.457391,0.0001536,2]
[391430234,1760601048463,-270.457391,0.0001536,2]
[391430236,1760601048472,-270.457391,0.0001536,2]
[391430238,1760601048481,-151.0,0.0001536,2]
[391430240,1760601048490,-151.0,0.0001536,2]
[391430242,1760601048500,-5888.0,0.0001536,2]
[391430244,1760601048509,-151.0,0.00015379,2]
[391430246,1760601048518,-163.792378,0.00015379,2]
[391430248,1760601048527,-151.0,0.00015379,2]
[391430251,1760601048537,-152.200975,0.00015379,2]
[391430253,1760601048548,-7907.03872085,0.00015379,2]
[391430254,1760601048557,-619.2709038,0.000154,2]
[391430257,1760601048567,-500.0,0.000154,5]
[391430259,1760601048576,-334.5472959,0.00015421,2]
[391430261,1760601048585,-203.05934364,0.00015421,2]
[391430263,1760601048594,-165.36,0.00015448,2]
[391430265,1760601048604,-323.0,0.00015455,2]
[391430267,1760601048613,-162.61694514,0.00015465,2]
[391430269,1760601048622,-157.16496,0.0001548,2]
[391430271,1760601048631,-800.0,0.000155,5]
[391430273,1760601048640,-151.0,0.00015514,2]
[391430275,1760601048649,-211.244295,0.00015514,2]
[391430277,1760601048658,-151.0,0.00015514,2]
[391430279,1760601048667,-271.060264,0.00015514,2]
[391430281,1760601048675,-151.0,0.00015514,2]
[391430283,1760601048684,-531.722978,0.00015514,2]
[391430285,1760601048693,-531.722978,0.00015514,2]
[391430287,1760601048702,-531.722978,0.00015514,2]
[391430289,1760601048711,-531.722978,0.00015514,2]
[391430291,1760601048720,-483.84934336,0.00015516,2]
[391430293,1760601048729,-151.0,0.00015519,2]
[391430295,1760601048738,-151.0,0.00015519,2]
[391430297,1760601048747,-151.0,0.00015519,2]
[391430299,1760601048756,-154.457782,0.00015519,2]
[391430301,1760601048765,-502.84819085,0.00015521,2]
[391430303,1760601048775,-500.0,0.00015521,2]
[391430305,1760601048785,-183.865553,0.00015521,2]
[391430307,1760601048794,-183.865553,0.00015521,2]
[391430309,1760601048804,-183.865553,0.00015521,2]
[391430311,1760601048815,-183.865549,0.00015521,2]
[391430313,1760601048824,-500.0,0.00015538,2]
[391430314,1760601048833,-204.28022455,0.00015538,2]
[391430317,1760601048842,-260.06803605,0.00015538,2]
[391430318,1760601048852,-253.8943251,0.00015538,2]
[391430321,1760601048861,-151.0,0.00015539,2]
[391430323,1760601048870,-288.02998,0.00015539,2]
[391430325,1760601048879,-151.0,0.00015539,2]
[391430327,1760601048890,-151.0,0.00015539,2]
[391430329,1760601048899,-160.822445,0.00015539,2]
[391430331,1760601048908,-160.822445,0.00015539,2]
[391430333,1760601048918,-160.822445,0.00015539,2]
[391430335,1760601048927,-160.822447,0.00015539,2]
[391430337,1760601048936,-151.0,0.00015539,2]
[391430339,1760601048946,-7907.03872085,0.00015539,2]
[391430341,1760601048955,-1000.0,0.000156,5]
[391430343,1760601048964,-151.0,0.00015616,2]
[391430345,1760601048973,-151.0,0.00015616,2]
[391430347,1760601048982,-151.0,0.00015616,2]
[391430349,1760601048996,-214.360056,0.00015616,2]
[391430351,1760601049006,-546.15,0.00015616,2]
[391430353,1760601049016,-270.457391,0.00015632,2]
[391430355,1760601049026,-270.457391,0.00015632,2]
[391430357,1760601049034,-270.457391,0.00015632,2]
[391430359,1760601049044,-270.457382,0.00015632,2]
[391430361,1760601049053,-151.0,0.00015632,2]
[391430363,1760601049063,-277.49272,0.00015632,2]
[391430365,1760601049073,-300.62,0.00015676,2]
[391430367,1760601049083,-150.0,0.00015676,2]
[391430369,1760601049094,-307.3,0.00015676,2]
[391430371,1760601049103,-546.25,0.00015676,2]
[391430373,1760601049114,-177.32,0.00015676,2]
[391430375,1760601049123,-168.22,0.00015676,2]
[391430377,1760601049133,-413.59,0.00015676,2]
[391430379,1760601049143,-1000.0,0.0001569,2]
[391430381,1760601049152,-7907.03872085,0.00015699,2]
[391430383,1760601049164,-1300.0,0.000157,5]
[391430385,1760601049174,-483.84934336,0.00015721,2]
[391430387,1760601049189,-157.16497,0.0001574,2]
[391430389,1760601049198,-1600.0,0.00015743,2]
[391430391,1760601049208,-157.776782,0.00015744,2]
[391430393,1760601049217,-151.0,0.00015744,2]
[391430395,1760601049227,-151.0,0.00015744,2]
[391430397,1760601049236,-1359.0,0.00015784,2]
[391430399,1760601049245,-583.0,0.00015784,2]
[391430401,1760601049255,-1760.62,0.00015794,7]
[391430403,1760601049264,-200.0,0.000158,5]
[391430405,1760601049273,-7907.03872085,0.00015859,2]
[391430407,1760601049283,-19818.61,0.000159,2]
[391430409,1760601049292,-200.0,0.000159,5]
[391430411,1760601049300,-151.0,0.000159,2]
[391430413,1760601049310,-151.0,0.000159,2]
[391430415,1760601049319,-153.18108661,0.000159,2]
[391430417,1760601049328,-151.0,0.000159,2]
[391430419,1760601049337,-231.873554,0.000159,2]
[391430421,1760601049347,-531.722978,0.000159,2]
[391430423,1760601049360,-531.722978,0.000159,2]
[391430426,1760601049370,-531.722978,0.000159,2]
[391430428,1760601049379,-531.722983,0.000159,2]
[391430429,1760601049388,-5000.0,0.000159,2]
[391430431,1760601049398,-483.84934336,0.00015927,2]
[391430434,1760601049407,-151.0,0.00015962,2]
[391430436,1760601049416,-151.0,0.00015962,2]
[391430438,1760601049427,-5888.0,0.00015962,2]
[391430440,1760601049437,-81894.86847122,0.00016,2]
[391430442,1760601049446,-151.0,0.00016,2]
[391430444,1760601049455,-151.0,0.00016,2]
[391430446,1760601049464,-289.298309,0.00016,2]
[391430448,1760601049473,-151.0,0.00016,2]
[391430450,1760601049482,-7907.03872085,0.00016018,2]
[391430452,1760601049491,-160.48747268,0.00016094,2]
[391430454,1760601049500,-833.554,0.00016094,2]
[391430455,1760601049509,-483.84934336,0.00016132,2]
[391430458,1760601049519,-11808.86454114,0.0001615,2]
[391430460,1760601049528,-7907.03872085,0.00016178,2]
[391430461,1760601049537,-399.57812001,0.00016238,2]
[391430464,1760601049547,-150.0,0.000163,2]
[391430466,1760601049555,-365.10434501,0.000163,2]
[391430468,1760601049565,-365.10434499,0.0001631,2]
[391430469,1760601049574,-160.53722179,0.00016311,2]
[391430472,1760601049583,-160.53722172,0.00016314,2]
[391430474,1760601049593,-160.53722172,0.00016317,2]
[391430476,1760601049602,-365.10434499,0.00016319,2]
[391430478,1760601049612,-160.53722172,0.0001632,2]
[391430480,1760601049621,-160.53722172,0.00016323,2]
[391430482,1760601049630,-160.53722172,0.00016326,2]
[391430483,1760601049639,-365.10434499,0.00016329,2]
[391430485,1760601049648,-160.53722172,0.00016329,2]
[391430487,1760601049657,-160.53722172,0.00016332,2]
[391430490,1760601049666,-160.53722172,0.00016335,2]
[391430492,1760601049675,-788.54218497,0.00016337,2]
[391430494,1760601049685,-788.54218491,0.00016337,2]
[391430495,1760601049695,-788.54218491,0.00016337,2]
[391430497,1760601049705,-788.54218491,0.00016338,2]
[391430499,1760601049714,-788.54218491,0.00016338,2]
[391430502,1760601049723,-788.54218491,0.00016338,2]
[391430504,1760601049732,-500.0,0.00016338,2]
[391430506,1760601049742,-500.0,0.00016338,2]
[391430508,1760601049751,-500.0,0.00016338,2]
[391430510,1760601049760,-500.0,0.00016338,2]
[391430512,1760601049769,-500.0,0.00016338,2]
[391430514,1760601049778,-500.0,0.00016338,2]
[391430516,1760601049788,-500.0,0.00016338,2]
[391430518,1760601049797,-500.0,0.00016338,2]
[391430520,1760601049806,-500.0,0.00016338,2]